[Event "GEO-ch U20 Boys 2020"]
[Site "Tbilisi"]
[Date "2020.08.12"]
[Round "7.6"]
[White "Kavkasidze, Ilia"]
[Black "Kupatadze, Tornike"]
[Result "0-1"]
[ECO "B06"]
[WhiteElo "1768"]
[BlackElo "1617"]
[Annotator "NA"]
[PlyCount "82"]
[EventDate "2020.08.06"]
[EventType "tourn"]
[EventCountry "GEO"]
[SourceTitle "playchess.com"]
[Source "ChessBase"]
[SourceQuality "1"]
[TimeControl "40/5400+30:1800+30"]

1. d4 {[%emt 0:00:27]} g6 {[%emt 0:06:26]} 2. e4 {[%emt 0:04:41]} Bg7 {[%emt 0:00:12]} 3. Nc3 {[%emt 0:00:50]} d6 {[%emt 0:00:10]} 4. Be3 {[%emt 0:00:07]} Nc6 {[%emt 0:00:12]} 5. Qd2 {[%emt 0:02:01]} e5 {[%emt 0:01:56]} 6. d5 {[%emt 0:00:18]} Nce7 {[%emt 0:00:43]} 7. O-O-O {[%emt 0:02:42]} f5 {[%emt 0:01:10]} 8. f3 {[%emt 0:00:21]} Bd7 {[%emt 0:03:43]} 9. Nge2 {[%emt 0:04:32]} b5 {[%emt 0:03:00]} 10. g3 {[%emt 0:34:10]} a5 {[%emt 0:04:04]} 11. Bg2 {[%emt 0:01:14]} b4 {[%emt 0:05:25]} 12. Nb1 {[%emt 0:00:02]} Rb8 {[%emt 0:14:08]} 13. Rhf1 {[%emt 0:04:57]} a4 {[%emt 0:01:40]} 14. a3 {[%emt 0:00:20]} bxa3 {[%emt 0:01:29]} 15. Nxa3 {[%emt 0:00:04]} Nf6 {[%emt 0:01:31]} 16. Bh6 {[%emt 0:06:13]} O-O {[%emt 0:01:01]} 17. Bxg7 {[%emt 0:00:06]} Kxg7 {[%emt 0:00:01]} 18. f4 {[%emt 0:06:35]} Nxe4 {[%emt 0:02:31]} 19. Bxe4 {[%emt 0:00:10]} fxe4 {[%emt 0:00:05]} 20. fxe5 {[%emt 0:02:08]} dxe5 {[%emt 0:04:00]} 21. Rxf8 {[%emt 0:08:22]} Qxf8 {[%emt 0:00:45]} 22. Qc3 {[%emt 0:00:11]} Bg4 {[%emt 0:10:02]} 23. Qxe5+ {[%emt 0:04:39]} Qf6 {[%emt 0:00:07]} 24. Qxf6+ {[%emt 0:00:29]} Kxf6 {[%emt 0:00:06]} 25. Rf1+ {[%emt 0:00:06]} Nf5 {[%emt 0:05:11]} 26. Nc3 {[%emt 0:05:14]} e3 {[%emt 0:01:30]} 27. Nab5 {[%emt 0:02:22]} Rxb5 28. Rxf5+ {[%emt 0:04:09]} Kxf5 {[%emt 0:22:09]} 29. Nxb5 {[%emt 0:00:18]} Ke4 {[%emt 0:00:20]} 30. h3 {[%emt 0:01:11]} Bd7 {[%emt 0:02:21]} 31. Nc3+ {[%emt 0:01:25]} Kf3 {[%emt 0:00:05]} 32. g4 {[%emt 0:01:33]} h5 {[%emt 0:03:48]} 33. gxh5 {[%emt 0:01:20]} gxh5 {[%emt 0:00:22]} 34. Kd1 {[%emt 0:00:46]} Bxh3 {[%emt 0:00:16]} 35. Ke1 {[%emt 0:00:33]} Bf5 {[%emt 0:00:39]} 36. Ne2 {[%emt 0:00:18]} h4 {[%emt 0:00:24]} 37. d6 {[%emt 0:00:53]} cxd6 {[%emt 0:00:23]} 38. Kf1 {[%emt 0:00:48]} Bh3+ {[%emt 0:02:04]} 39. Ke1 {[%emt 0:00:11]} Bd7 {[%emt 0:00:05]} 40. Nd4+ {[%emt 0:00:32]} Kg2 {[%emt 0:01:01]} 41. Ke2 {[%emt 0:30:13]} h3 {[%emt 0:30:37]} 0-1

[Event "GEO-ch U20 Boys 2020"]
[Site "Tbilisi"]
[Date "2020.08.13"]
[Round "8.4"]
[White "Kukhaleishvili, Giorgi"]
[Black "Qalichava, Akaki"]
[Result "0-1"]
[ECO "A45"]
[WhiteElo "1801"]
[BlackElo "1832"]
[Annotator "NA RC"]
[PlyCount "94"]
[EventDate "2020.08.06"]
[EventType "tourn"]
[EventCountry "GEO"]
[SourceTitle "playchess.com"]
[Source "ChessBase"]
[SourceQuality "1"]
[TimeControl "40/5400+30:1800+30"]

{[%evp 11,71,5,0,3,0,5,0,-47,-20,-31,-24,-78,-73,-105,-99,-90,-49,-144,-150,-214,-200,-219,-210,-192,-167,-261,-158,-170,-198,-176,-181,-202,-122,-204,-126,-211,-180,-172,-189,-185,-148,-109,32767,32767,-140,-208,-212,-232,-223,-263,-214,-292,-249,-311,-222,-236,-217,-283,-349,-316,0,0]} 1. d4 {[%emt 0:05:35]} Nf6 {[%emt 0:00:00]} 2. Bg5 {[%emt 0:00:04]} Ne4 {[%emt 0:00:00]} 3. Bf4 {[%emt 0:00:04]} c5 {[%emt 0:00:03]} 4. f3 {[%emt 0:02:45]} Nf6 {[%emt 0:00:26]} 5. Nc3 {[%emt 0:00:20]} Qb6 {[%emt 0:04:55]} 6. d5 {[%emt 0:06:01] A45: Trompowsky Attack.} Qxb2 {[%emt 0:02:29]} 7. Bd2 {[%emt 0:00:08]} Qb6 $1 {[%emt 0:00:13]} 8. e4 {[%emt 0:05:38]} d6 {[%emt 0:05:07] [#]} 9. Na4 $146 {[%emt 0:00:26]} ({Predecessor:} 9. Rb1 Qd8 10. f4 g6 11. Nf3 Bg7 12. Bb5+ Nfd7 13. a4 O-O 14. h4 Nf6 15. h5 {0-1 (34) Stopa,J (2427)-Belous,V (2532) chess.com INT 2020}) 9... Qc7 {[%emt 0:00:56]} 10. c4 {[%emt 0:00:02]} e6 {[%emt 0:01:48]} 11. Bc3 {[%emt 0:03:41]} (11. Ne2 $11 {remains equal.}) 11... Be7 {[%emt 0:04:53]} 12. Nb2 {[%emt 0:00:13]} O-O {[%emt 0:06:08]} 13. a4 {[%emt 0:00:15]} Nbd7 {[%emt 0:01:47]} 14. g4 {[%emt 0:00:44]} ({Better is} 14. Bd3 $15) 14... Ne5 {[%emt 0:02:14]} 15. Bxe5 {[%emt 0:00:24]} (15. Qc2 $17) 15... dxe5 {[%emt 0:00:08]} 16. Bd3 {[%emt 0:01:34]} Ne8 {[%emt 0:04:38]} 17. Ne2 {[%emt 0:02:01]} Nd6 {[%emt 0:01:08]} 18. Nc3 {[%emt 0:00:45]} (18. O-O $17 {was worth a try.}) 18... f5 {[%emt 0:01:56]} 19. O-O {[%emt 0:04:51]} fxg4 {[%emt 0:02:12]} 20. fxg4 {[%emt 0:00:22]} Bd7 {[%emt 0:00:32]} 21. Qe2 {[%emt 0:00:52]} Bg5 {[%emt 0:02:51]} (21... Rae8 $19 22. h3 Qa5) 22. Bc2 {[%emt 0:06:35]} (22. Nb5 $17 Nxb5 23. axb5) 22... Rad8 {[%emt 0:08:50]} (22... Qa5 $19 23. Nb5 Nxb5 24. axb5 Qc3) 23. Rad1 {[%emt 0:16:11]} Qc8 {[%emt 0:05:38]} 24. Rxf8+ {[%emt 0:02:06]} Rxf8 {[%emt 0:00:23]} 25. h3 {[%emt 0:06:29]} Nf7 {[%emt 0:03:54]} 26. Nd3 {[%emt 0:00:57]} h5 {[%emt 0:00:36]} 27. d6 {[%emt 0:03:06]} Qc6 {[%emt 0:05:12]} ({Don't take} 27... Nxd6 28. Nxe5 Be8 29. Nf3 $17 (29. Rxd6 Qb8 $17)) 28. h4 {[%emt 0:04:35]} (28. gxh5 $17 Qxd6 29. Nf4) 28... Bxh4 {[%emt 0:03:13]} 29. gxh5 {[%emt 0:04:01]} Bg5 {[%emt 0:06:41]} ({Worse is} 29... Qxd6 {[#]} 30. Nf4 $1 $15 {[%mdl 512]}) ({Don't take} 29... Nxd6 30. Qh2 $17) 30. Nf2 {[%emt 0:12:37]} Qc8 {[%emt 0:04:21]} ({But not} 30... Nxd6 31. Nh3 $17) 31. Nd3 {[%emt 0:06:04]} (31. Nh3 $142) 31... b6 {[%emt 0:02:18]} ({Stronger than} 31... Nxd6 32. Nxe5 Be8 33. Ng6 $11 (33. Rxd6 Bf4 $17)) 32. a5 {[%emt 0:00:50]} Qb8 {[%emt 0:01:22]} ({Weaker is} 32... bxa5 33. Kh1 $17) ({Worse is} 32... Nxd6 33. Nxe5 Be8 34. axb6 $11) 33. axb6 {[%emt 0:01:08]} axb6 {[%emt 0:00:05]} 34. Nb5 {[%emt 0:03:07]} Bxb5 $19 {[%emt 0:01:41]} (34... Nxd6 $2 35. Nxd6 Qxd6 {[#]} 36. Nf4 $1 $17 {[%mdl 512]}) 35. cxb5 {[%emt 0:00:00]} Qxd6 $2 {[%emt 0:00:12] [#]} ({Don't play} 35... Nxd6 36. Qg4 $19) ({Black should play} 35... c4 $19 36. Nb4 Nxd6) 36. Nf4 $1 {[%emt 0:00:06]} Qe7 {[%emt 0:04:21]} 37. Ng6 {[%emt 0:00:11]} Qf6 {[%emt 0:00:14]} 38. Nxf8 {[%emt 0:00:33]} Kxf8 {[%emt 0:00:05]} 39. Ra1 {[%emt 0:00:45]} Qd8 {[%emt 0:01:38]} 40. Rd1 {[%emt 0:01:37]} Qf6 {[%emt 0:01:53]} 41. Ra1 {[%emt 0:30:05]} Nd6 {[%emt 0:35:25]} 42. Ra8+ {[%emt 0:01:27]} Kf7 {[%emt 0:00:08]} 43. Rb8 {[%emt 0:00:40]} Nxb5 {[%emt 0:00:48]} 44. Qxb5 {[%emt 0:01:31]} Be3+ {[%emt 0:00:08]} 45. Kg2 {[%emt 0:00:32]} Qg5+ {[%emt 0:00:09]} 46. Kf3 {[%emt 0:00:29]} Qf4+ {[%emt 0:00:08]} 47. Ke2 {[%emt 0:00:23]} Qf2+ {[%emt 0:00:06]} 0-1

[Event "GEO-ch U20 Boys 2020"]
[Site "Tbilisi"]
[Date "2020.08.13"]
[Round "8.5"]
[White "Loladze, Andria"]
[Black "Kupatadze, Tornike"]
[Result "0-1"]
[ECO "B06"]
[WhiteElo "1794"]
[BlackElo "1617"]
[Annotator "NA RC"]
[PlyCount "62"]
[EventDate "2020.08.06"]
[EventType "tourn"]
[EventCountry "GEO"]
[SourceTitle "playchess.com"]
[Source "ChessBase"]
[SourceQuality "1"]
[TimeControl "40/5400+30:1800+30"]

1. d4 {[%emt 0:00:00]} g6 {[%emt 0:01:10]} 2. e4 {[%emt 0:00:00]} Bg7 {[%emt 0:00:03]} 3. Nc3 {[%emt 0:00:00]} d6 {[%emt 0:00:02]} 4. f4 {[%emt 0:00:00]} Nc6 {[%emt 0:00:18]} 5. Nf3 {[%emt 0:00:00]} Bg4 {[%emt 0:00:30]} 6. Be3 {[%emt 0:00:01]} e5 {[%emt 0:04:15]} 7. fxe5 {[%emt 0:36:43]} dxe5 {[%emt 0:01:39]} 8. d5 {[%emt 0:01:55]} Nd4 {[%emt 0:01:08]} 9. Bxd4 {[%emt 0:12:07]} exd4 {[%emt 0:00:05]} 10. Bb5+ {[%emt 0:00:09]} Kf8 {[%emt 0:00:07]} 11. Ne2 {[%emt 0:02:39]} c6 {[%emt 0:01:55]} 12. Bc4 {[%emt 0:06:05]} Bxf3 {[%emt 0:00:16]} 13. gxf3 {[%emt 0:00:19]} Qh4+ {[%emt 0:00:06]} 14. Ng3 {[%emt 0:04:26]} Be5 {[%emt 0:01:05]} 15. Kf2 {[%emt 0:00:54]} Nh6 16. Kg2 {[%emt 0:11:47]} Kg7 {[%emt 0:03:21]} 17. Qd2 {[%emt 0:04:36]} Rhf8 {[%emt 0:03:55]} 18. c3 {[%emt 0:10:46]} c5 {[%emt 0:01:00]} 19. cxd4 {[%emt 0:00:24]} cxd4 {[%emt 0:00:05]} 20. Rae1 {[%emt 0:02:21]} Rae8 {[%emt 0:03:17]} 21. Ne2 {[%emt 0:02:18]} f5 {[%emt 0:11:42]} 22. Nxd4 {[%emt 0:00:07]} Ng4 {[%emt 0:00:04]} 23. Ne6+ {[%emt 0:02:30]} Rxe6 {[%emt 0:02:02]} 24. dxe6 {[%emt 0:00:17]} Nxh2 {[%emt 0:00:03]} 25. f4 {[%emt 0:01:28]} Qg4+ {[%emt 0:00:29]} 26. Kxh2 {[%emt 0:00:36]} Bxf4+ {[%emt 0:00:05]} 27. Qxf4 {[%emt 0:00:14]} Qxf4+ {[%emt 0:00:04]} 28. Kg2 {[%emt 0:00:15]} Qg4+ {[%emt 0:01:00]} 29. Kh2 {[%emt 0:00:23]} fxe4 {[%emt 0:01:14]} 30. Rhf1 {[%emt 0:00:22]} Rf3 {[%emt 0:00:25]} 31. Rxf3 {[%emt 0:01:10]} exf3 {[%emt 0:00:00]} 0-1

[Event "GEO-ch U20 Boys 2020"]
[Site "Tbilisi"]
[Date "2020.08.13"]
[Round "8.6"]
[White "Kilasonia, Lado"]
[Black "Tsanatsqenishvili, Alexandre"]
[Result "0-1"]
[ECO "B05"]
[WhiteElo "1390"]
[BlackElo "1660"]
[Annotator "NA RC"]
[PlyCount "119"]
[EventDate "2020.08.06"]
[EventType "tourn"]
[EventCountry "GEO"]
[SourceTitle "playchess.com"]
[Source "ChessBase"]
[SourceQuality "1"]
[TimeControl "40/5400+30:1800+30"]

1. e4 {[%emt 0:00:00]} Nf6 {[%emt 0:00:00]} 2. e5 {[%emt 0:00:00]} Nd5 {[%emt 0:00:00]} 3. d4 {[%emt 0:00:00]} d6 {[%emt 0:00:00]} 4. Nf3 {[%emt 0:00:00]} Bg4 {[%emt 0:00:00]} 5. Be2 {[%emt 0:00:00]} c6 {[%emt 0:00:00]} 6. O-O {[%emt 0:00:25]} Bxf3 {[%emt 0:00:04]} 7. Bxf3 {[%emt 0:00:07]} dxe5 {[%emt 0:00:01]} 8. dxe5 {[%emt 0:00:07]} e6 {[%emt 0:00:01]} 9. c4 {[%emt 0:01:04]} Ne7 {[%emt 0:00:01]} 10. Qxd8+ {[%emt 0:01:12]} Kxd8 {[%emt 0:00:02]} 11. Bf4 {[%emt 0:05:34]} Ng6 {[%emt 0:02:29]} 12. Bg3 {[%emt 0:00:02]} Nd7 {[%emt 0:00:02]} 13. Re1 {[%emt 0:00:55]} Bb4 {[%emt 0:00:56]} 14. Nc3 {[%emt 0:00:03]} Kc7 {[%emt 0:22:35]} 15. a3 {[%emt 0:00:13]} Bxc3 {[%emt 0:09:54]} 16. bxc3 {[%emt 0:00:02]} Rad8 {[%emt 0:00:21]} 17. h4 {[%emt 0:02:37]} Ne7 {[%emt 0:08:17]} 18. h5 {[%emt 0:00:56]} Nc5 {[%emt 0:01:03]} 19. Bh4 {[%emt 0:01:17]} Rd7 {[%emt 0:00:11]} 20. Rad1 {[%emt 0:01:57]} Nf5 {[%emt 0:13:20]} 21. Rxd7+ {[%emt 0:01:09]} Nxd7 {[%emt 0:01:00]} 22. Bg5 {[%emt 0:00:05]} h6 {[%emt 0:00:05]} 23. Bf4 {[%emt 0:00:34]} Nb6 {[%emt 0:00:51]} 24. g4 {[%emt 0:00:48]} Ne7 {[%emt 0:00:01]} 25. Be2 {[%emt 0:01:02]} Na4 {[%emt 0:05:02]} 26. Rc1 {[%emt 0:00:27]} Rd8 {[%emt 0:02:55]} 27. Be3 {[%emt 0:02:25]} b6 {[%emt 0:05:13]} 28. f4 {[%emt 0:03:43]} Nb2 {[%emt 0:03:24]} 29. Kg2 {[%emt 0:02:05]} Nd3 {[%emt 0:02:34]} 30. Rf1 {[%emt 0:02:20]} Nc5 {[%emt 0:06:56]} 31. f5 {[%emt 0:01:51]} exf5 {[%emt 0:02:13]} 32. gxf5 {[%emt 0:00:56]} Ne4 {[%emt 0:00:17]} 33. f6 {[%emt 0:01:52]} gxf6 {[%emt 0:00:10]} 34. Bxh6 {[%emt 0:01:54]} Rg8+ {[%emt 0:00:17]} 35. Kf3 {[%emt 0:09:28]} f5 {[%emt 0:02:16]} 36. Bf4 {[%emt 0:03:14]} Kd7 {[%emt 0:02:11]} 37. Rh1 {[%emt 0:00:46]} Rh8 {[%emt 0:11:50]} 38. Bd3 {[%emt 0:01:29]} Nc5 {[%emt 0:01:20]} 39. Bc2 {[%emt 0:00:18]} Ke6 {[%emt 0:00:10]} 40. Rd1 {[%emt 0:02:15]} Nc8 {[%emt 0:00:54]} 41. h6 {[%emt 0:30:31]} a5 {[%emt 0:30:52]} 42. Rh1 {[%emt 0:01:35]} Nd7 {[%emt 0:00:23]} 43. Re1 {[%emt 0:20:09]} Ne7 {[%emt 0:00:22]} 44. c5 {[%emt 0:00:43]} bxc5 {[%emt 0:00:45]} 45. Bb3+ {[%emt 0:02:42]} Nd5 {[%emt 0:00:12]} 46. Re2 {[%emt 0:05:53]} N7b6 {[%emt 0:00:36]} 47. Rb2 {[%emt 0:06:07]} c4 48. Bc2 {[%emt 0:01:37]} Nd7 {[%emt 0:00:39]} 49. Ba4 {[%emt 0:01:50]} Nxf4 {[%emt 0:00:41]} 50. Kxf4 {[%emt 0:00:24]} Rxh6 {[%emt 0:00:28]} 51. Re2 {[%emt 0:00:38]} Rh4+ {[%emt 0:00:15]} 52. Kg3 {[%emt 0:00:53]} Rg4+ {[%emt 0:00:07]} 53. Kh3 {[%emt 0:00:02]} Nxe5 {[%emt 0:01:04]} 54. Bxc6 {[%emt 0:00:02]} Kd6 {[%emt 0:00:27]} 55. Bb7 {[%emt 0:01:11]} Nd3 {[%emt 0:00:32]} 56. Rd2 {[%emt 0:00:17]} Kc5 {[%emt 0:00:29]} 57. Bc8 {[%emt 0:00:11]} Rg5 {[%emt 0:00:31]} 58. Kh4 {[%emt 0:00:32]} f6 {[%emt 0:00:01]} 59. Rd1 {[%emt 0:00:33]} Nf4 {[%emt 0:00:31]} 60. Bxf5 0-1

[Event "GEO-ch U20 Boys 2020"]
[Site "Tbilisi"]
[Date "2020.08.14"]
[Round "9.6"]
[White "Naqopia, Giorgi"]
[Black "Gongliashvili, Zurab"]
[Result "1/2-1/2"]
[ECO "A46"]
[WhiteElo "1806"]
[BlackElo "1807"]
[Annotator "NA RC"]
[PlyCount "61"]
[EventDate "2020.08.06"]
[EventType "tourn"]
[EventCountry "GEO"]
[SourceTitle "playchess.com"]
[Source "ChessBase"]
[SourceQuality "1"]
[TimeControl "40/5400+30:1800+30"]

1. d4 {[%emt 0:10:09]} Nf6 {[%emt 0:00:00]} 2. Nf3 {[%emt 0:00:04]} d5 {[%emt 0:00:00]} 3. c3 {[%emt 0:00:03]} c5 {[%emt 0:00:00]} 4. Bg5 {[%emt 0:00:06]} e6 {[%emt 0:00:00]} 5. Bxf6 {[%emt 0:00:03]} Qxf6 {[%emt 0:00:00] [#]} 6. Ne5 $146 {[%emt 0:00:02] D02: 1 d4 d5 2 Nf3 sidelines, including 2...Nf6 3 g3 and 2...Nf6 3 Bf4.} ({Predecessor:} 6. e3 Bd6 7. Bb5+ Nc6 8. O-O Bd7 9. Nbd2 a6 10. Bd3 cxd4 11. Nxd4 O-O 12. Qe2 Rad8 {0-1 (29) Ljubicic,F (2415)-Saric,A (2505) Rijeka 2008}) 6... Nc6 {[%emt 0:00:06]} 7. Nxc6 {[%emt 0:00:07]} bxc6 {[%emt 0:00:03]} 8. e3 {[%emt 0:00:04]} Bd6 {[%emt 0:00:15]} 9. Nd2 {[%emt 0:00:05]} cxd4 {[%emt 0:00:12]} 10. exd4 {[%emt 0:00:03]} O-O {[%emt 0:00:10]} 11. Qf3 {[%emt 0:00:07]} Qxf3 {[%emt 0:00:04]} 12. Nxf3 {[%emt 0:00:04]} c5 {[%emt 0:00:04]} 13. dxc5 {[%emt 0:00:05]} Bxc5 {[%emt 0:00:03]} 14. Bd3 {[%emt 0:00:06]} a5 {[%emt 0:00:07]} 15. O-O {[%emt 0:00:06]} Ba6 {[%emt 0:00:03]} 16. Bxa6 {[%emt 0:00:04]} Rxa6 {[%emt 0:00:03]} 17. Rfd1 {[%emt 0:00:17]} a4 {[%emt 0:00:10]} 18. b4 {[%emt 0:00:09]} axb3 {[%emt 0:00:12]} 19. axb3 {[%emt 0:00:03]} Rfa8 {[%emt 0:00:06]} 20. Rxa6 {[%emt 0:00:05]} Rxa6 {[%emt 0:00:03]} 21. Nd4 {[%emt 0:00:23]} Bxd4 {[%emt 0:00:11]} 22. cxd4 {[%emt 0:00:03]} Rb6 {[%emt 0:00:08]} 23. Rd3 {[%emt 0:00:09]} Kf8 {[%emt 0:00:05]} 24. Kf1 {[%emt 0:00:03]} Ke7 {[%emt 0:00:04]} 25. Ke2 {[%emt 0:00:04]} Kd6 {[%emt 0:00:08]} 26. Kd2 {[%emt 0:00:04]} f6 {[%emt 0:00:08]} 27. f4 {[%emt 0:00:05]} e5 {[%emt 0:00:10]} 28. fxe5+ {[%emt 0:00:04]} fxe5 {[%emt 0:00:03]} 29. dxe5+ {[%emt 0:00:05]} Kxe5 {[%emt 0:00:04]} 30. h3 {[%emt 0:00:13]} Rb4 $11 {[%emt 0:00:05]} 31. g3 {[%emt 0:00:04]} 1/2-1/2